[Event "Titled Tuesday Blitz July 4 Early 2023"]
[White "Sovetbekova, Nurai"]
[Black "Nefedov, Sergey"]
[WhiteFideId "13801910"]
[BlackFideId "24113417"]
[WhiteElo "2356"]
[BlackElo "2570"]
[Result "0-1"]
[Round "2"]
[TimeControl "180+2"]
[Date "2023.07.04"]
[WhiteClock "0:00:04"]
[BlackClock "0:00:20"]
[Board "162"]

1. d4 {[%clk 0:03:00]}  Nf6 {[%clk 0:02:58]} 2. c4 {[%clk 0:03:01]}  e6 {[%clk 0:02:56]} 3. Nc3 {[%clk 0:03:01]}  d5 {[%clk 0:02:55]} 4. Nf3 {[%clk 0:02:59]}  a6 {[%clk 0:02:51]} 5. Bf4 {[%clk 0:02:54]}  dxc4 {[%clk 0:02:48]} 6. e4 {[%clk 0:02:54]}  b5 {[%clk 0:02:45]} 7. b3 {[%clk 0:02:44]}  Bb4 {[%clk 0:02:44]} 8. Bd2 {[%clk 0:02:39]}  Bxc3 {[%clk 0:02:43]} 9. Bxc3 {[%clk 0:02:39]}  Nxe4 {[%clk 0:02:44]} 10. Qc2 {[%clk 0:02:36]}  Nxc3 {[%clk 0:02:40]} 11. Qxc3 {[%clk 0:02:34]}  cxb3 {[%clk 0:02:35]} 12. axb3 {[%clk 0:02:33]}  Bb7 {[%clk 0:02:34]} 13. Rc1 {[%clk 0:02:25]}  O-O {[%clk 0:02:28]} 14. Qxc7 {[%clk 0:02:23]}  Bxf3 {[%clk 0:02:28]} 15. gxf3 {[%clk 0:02:19]}  Qxd4 {[%clk 0:02:27]} 16. Be2 {[%clk 0:02:10]}  Ra7 {[%clk 0:02:16]} 17. Qg3 {[%clk 0:02:01]}  Qb4+ {[%clk 0:02:12]} 18. Kf1 {[%clk 0:01:59]}  Nd7 {[%clk 0:01:56]} 19. Rg1 {[%clk 0:01:57]}  g6 {[%clk 0:01:55]} 20. f4 {[%clk 0:01:56]}  Nf6 {[%clk 0:01:47]} 21. h4 {[%clk 0:01:46]}  Nd5 {[%clk 0:01:45]} 22. f5 {[%clk 0:01:24]}  exf5 {[%clk 0:01:42]} 23. h5 {[%clk 0:01:21]}  Qf4 {[%clk 0:01:34]} 24. Rc5 {[%clk 0:01:17]}  Qxg3 {[%clk 0:01:31]} 25. Rxg3 {[%clk 0:01:16]}  Nf6 {[%clk 0:01:31]} 26. Rxf5 {[%clk 0:01:12]}  Ne4 {[%clk 0:01:25]} 27. Rg4 {[%clk 0:01:04]}  Nd2+ {[%clk 0:01:25]} 28. Kg2 {[%clk 0:00:58]}  Nxb3 {[%clk 0:01:14]} 29. h6 {[%clk 0:00:52]}  Rd8 {[%clk 0:00:51]} 30. Re5 {[%clk 0:00:44]}  f6 {[%clk 0:00:46]} 31. Re6 {[%clk 0:00:39]}  Nd4 {[%clk 0:00:42]} 32. Ree4 {[%clk 0:00:10]}  Nxe2 {[%clk 0:00:33]} 33. Rxe2 {[%clk 0:00:11]}  Kf7 {[%clk 0:00:28]} 34. Rge4 {[%clk 0:00:10]}  Rb8 {[%clk 0:00:27]} 35. Rc2 {[%clk 0:00:07]}  a5 {[%clk 0:00:27]} 36. Rc6 {[%clk 0:00:07]}  b4 {[%clk 0:00:20]} 37. Ree6 {[%clk 0:00:06]}  b3 {[%clk 0:00:20]} 38. Rxf6+ {[%clk 0:00:07]}  Kg8 {[%clk 0:00:20]} 39. Rc1 {[%clk 0:00:05]}  b2 {[%clk 0:00:20]} 40. Rb1 {[%clk 0:00:05]}  a4 {[%clk 0:00:20]} 41. Rd6 {[%clk 0:00:03]}  a3 {[%clk 0:00:20]} 42. Rd2 {[%clk 0:00:04]}  a2 {[%clk 0:00:20]} 43. Rbxb2 {[%clk 0:00:04]}  Rxb2 {[%clk 0:00:21]} 44. Rxb2 {[%clk 0:00:03]}  a1=Q {[%clk 0:00:20]} 45. Rb8+ {[%clk 0:00:04]} 0-1


[Site "https://www.chess.com"]

[Event "Titled Tuesday Blitz July 4 Early 2023"]
[White "ArtemDyachuk"]
[Black "Duarte, Leonardo"]
[BlackFideId "110582"]
[WhiteElo "2569"]
[BlackElo "2355"]
[Result "1-0"]
[Round "2"]
[TimeControl "180+2"]
[Date "2023.07.04"]
[WhiteClock "0:01:22"]
[BlackClock "0:00:00"]
[Board "163"]

1. e4 {[%clk 0:03:00]}  e5 {[%clk 0:02:59]} 2. Nf3 {[%clk 0:02:59]}  Nc6 {[%clk 0:02:59]} 3. Bc4 {[%clk 0:02:59]}  Bc5 {[%clk 0:02:59]} 4. O-O {[%clk 0:02:39]}  Nf6 {[%clk 0:02:58]} 5. d3 {[%clk 0:02:31]}  a5 {[%clk 0:02:57]} 6. c3 {[%clk 0:02:30]}  d6 {[%clk 0:02:57]} 7. h3 {[%clk 0:02:30]}  O-O {[%clk 0:02:56]} 8. Nbd2 {[%clk 0:02:29]}  Ba7 {[%clk 0:02:56]} 9. Re1 {[%clk 0:02:28]}  Ne7 {[%clk 0:02:57]} 10. Nf1 {[%clk 0:02:28]}  c6 {[%clk 0:02:58]} 11. Bb3 {[%clk 0:02:27]}  Ng6 {[%clk 0:02:58]} 12. Ng3 {[%clk 0:02:26]}  d5 {[%clk 0:02:58]} 13. exd5 {[%clk 0:02:22]}  Nxd5 {[%clk 0:02:58]} 14. Bg5 {[%clk 0:02:17]}  Qc7 {[%clk 0:02:40]} 15. d4 {[%clk 0:02:11]}  exd4 {[%clk 0:02:38]} 16. Nxd4 {[%clk 0:02:10]}  Be6 {[%clk 0:02:26]} 17. Bc2 {[%clk 0:01:56]}  Bxd4 {[%clk 0:00:56]} 18. Qxd4 {[%clk 0:01:52]}  a4 {[%clk 0:00:55]} 19. Nh5 {[%clk 0:01:49]}  f6 {[%clk 0:00:48]} 20. Rxe6 {[%clk 0:01:46]}  fxg5 {[%clk 0:00:47]} 21. Bxg6 {[%clk 0:01:46]}  hxg6 {[%clk 0:00:46]} 22. Rxg6 {[%clk 0:01:47]}  Rf7 {[%clk 0:00:44]} 23. Re1 {[%clk 0:01:37]}  Nf4 {[%clk 0:00:36]} 24. Nf6+ {[%clk 0:01:30]}  Kh8 {[%clk 0:00:16]} 25. Rh6+ {[%clk 0:01:28]}  gxh6 {[%clk 0:00:15]} 26. Ne8+ {[%clk 0:01:28]}  Kg8 {[%clk 0:00:15]} 27. Nxc7 {[%clk 0:01:29]}  Rxc7 {[%clk 0:00:15]} 28. Qf6 {[%clk 0:01:27]}  Rf8 {[%clk 0:00:11]} 29. Qxh6 {[%clk 0:01:27]}  Rg7 {[%clk 0:00:10]} 30. Re5 {[%clk 0:01:23]}  g4 {[%clk 0:00:00]} 31. Rg5 {[%clk 0:01:22]} 1-0


[Site "https://www.chess.com"]

[Event "Titled Tuesday Blitz July 4 Early 2023"]
[White "Sowa, Ryan"]
[Black "TomLiu777"]
[WhiteFideId "30901693"]
[WhiteElo "2552"]
[BlackElo "2352"]
[Result "1-0"]
[Round "2"]
[TimeControl "180+2"]
[Date "2023.07.04"]
[WhiteClock "0:00:47"]
[BlackClock "0:00:00"]
[Board "164"]

1. Nf3 {[%clk 0:03:00]}  Nf6 {[%clk 0:02:55]} 2. b3 {[%clk 0:03:01]}  g6 {[%clk 0:02:54]} 3. Bb2 {[%clk 0:03:02]}  Bg7 {[%clk 0:02:54]} 4. e3 {[%clk 0:03:03]}  a5 {[%clk 0:02:54]} 5. a4 {[%clk 0:03:00]}  O-O {[%clk 0:02:53]} 6. Be2 {[%clk 0:02:59]}  d6 {[%clk 0:02:53]} 7. d4 {[%clk 0:02:59]}  Nbd7 {[%clk 0:02:49]} 8. O-O {[%clk 0:02:57]}  c6 {[%clk 0:02:48]} 9. c4 {[%clk 0:02:53]}  Qc7 {[%clk 0:02:47]} 10. Nc3 {[%clk 0:02:52]}  e5 {[%clk 0:02:46]} 11. d5 {[%clk 0:02:53]}  Nc5 {[%clk 0:02:40]} 12. Nd2 {[%clk 0:02:50]}  e4 {[%clk 0:02:24]} 13. Qc2 {[%clk 0:02:48]}  Bf5 {[%clk 0:02:19]} 14. Ba3 {[%clk 0:02:48]}  Nd3 {[%clk 0:02:11]} 15. f3 {[%clk 0:02:46]}  Nb4 {[%clk 0:02:04]} 16. Qd1 {[%clk 0:02:42]}  exf3 {[%clk 0:02:03]} 17. Rxf3 {[%clk 0:02:31]}  Bg4 {[%clk 0:01:36]} 18. Rf1 {[%clk 0:02:26]}  Bxe2 {[%clk 0:01:32]} 19. Qxe2 {[%clk 0:02:27]}  cxd5 {[%clk 0:01:25]} 20. Bxb4 {[%clk 0:02:19]}  axb4 {[%clk 0:01:25]} 21. Nb5 {[%clk 0:02:19]}  Qc5 {[%clk 0:01:23]} 22. Rac1 {[%clk 0:02:13]}  Rae8 {[%clk 0:01:13]} 23. cxd5 {[%clk 0:02:05]}  Rxe3 {[%clk 0:01:09]} 24. Qf2 {[%clk 0:01:56]}  Ng4 {[%clk 0:00:40]} 25. Rxc5 {[%clk 0:01:55]}  Nxf2 {[%clk 0:00:39]} 26. Kxf2 {[%clk 0:01:55]}  Rd3 {[%clk 0:00:39]} 27. Rc2 {[%clk 0:01:53]}  Rxd5 {[%clk 0:00:38]} 28. Nc4 {[%clk 0:01:51]}  Re8 {[%clk 0:00:32]} 29. Re2 {[%clk 0:01:44]}  Rd8 {[%clk 0:00:22]} 30. Rfe1 {[%clk 0:01:29]}  Rf5+ {[%clk 0:00:18]} 31. Kg3 {[%clk 0:01:26]}  h5 {[%clk 0:00:08]} 32. Nbxd6 {[%clk 0:01:17]}  h4+ {[%clk 0:00:04]} 33. Kh3 {[%clk 0:01:17]}  Rd5 {[%clk 0:00:02]} 34. Re8+ {[%clk 0:01:16]}  Rxe8 {[%clk 0:00:02]} 35. Rxe8+ {[%clk 0:01:17]}  Kh7 {[%clk 0:00:01]} 36. Nxf7 {[%clk 0:01:16]}  Rd3+ {[%clk 0:00:01]} 37. Re3 {[%clk 0:01:17]}  Rd4 {[%clk 0:00:01]} 38. Ng5+ {[%clk 0:01:15]}  Kh6 {[%clk 0:00:02]} 39. Nf3 {[%clk 0:01:16]}  Rf4 {[%clk 0:00:01]} 40. g3 {[%clk 0:00:53]}  Rf6 {[%clk 0:00:00]} 41. Kxh4 {[%clk 0:00:47]} 1-0


[Site "https://www.chess.com"]

[Event "Titled Tuesday Blitz July 4 Early 2023"]
[White "Adireddy Arjun"]
[Black "WindWhistler11"]
[WhiteFideId "25647709"]
[WhiteElo "2350"]
[BlackElo "2551"]
[Result "1-0"]
[Round "2"]
[TimeControl "180+2"]
[Date "2023.07.04"]
[WhiteClock "0:01:28"]
[BlackClock "0:00:32"]
[Board "165"]

1. e4 {[%clk 0:03:00]}  e6 {[%clk 0:02:57]} 2. d4 {[%clk 0:02:59]}  d5 {[%clk 0:02:58]} 3. Bd3 {[%clk 0:02:53]}  Nc6 {[%clk 0:02:55]} 4. Nf3 {[%clk 0:02:48]}  dxe4 {[%clk 0:02:46]} 5. Bxe4 {[%clk 0:02:49]}  Nf6 {[%clk 0:02:46]} 6. Bxc6+ {[%clk 0:02:48]}  bxc6 {[%clk 0:02:46]} 7. O-O {[%clk 0:02:47]}  c5 {[%clk 0:02:40]} 8. Bf4 {[%clk 0:02:37]}  Bb7 {[%clk 0:02:27]} 9. dxc5 {[%clk 0:02:31]}  Bxc5 {[%clk 0:02:23]} 10. Qxd8+ {[%clk 0:02:29]}  Kxd8 {[%clk 0:02:08]} 11. Rd1+ {[%clk 0:02:15]}  Kc8 {[%clk 0:02:06]} 12. Ne5 {[%clk 0:02:09]}  Rf8 {[%clk 0:02:04]} 13. Nc3 {[%clk 0:02:06]}  Nd5 {[%clk 0:01:46]} 14. Nxd5 {[%clk 0:02:06]}  Bxd5 {[%clk 0:01:34]} 15. c4 {[%clk 0:02:05]}  f6 {[%clk 0:01:27]} 16. Nd3 {[%clk 0:01:54]}  Bxf2+ {[%clk 0:00:53]} 17. Kxf2 {[%clk 0:01:48]}  Bxc4 {[%clk 0:00:46]} 18. Rac1 {[%clk 0:01:34]}  Bxd3 {[%clk 0:00:44]} 19. Rxc7+ {[%clk 0:01:30]}  Kb8 {[%clk 0:00:32]} 20. Rf7+ {[%clk 0:01:28]} 1-0


[Site "https://www.chess.com"]

[Event "Titled Tuesday Blitz July 4 Early 2023"]
[White "Rozhkov, Viacheslav"]
[Black "gueraumasague"]
[WhiteFideId "4181484"]
[WhiteElo "2334"]
[BlackElo "2543"]
[Result "0-1"]
[Round "2"]
[TimeControl "180+2"]
[Date "2023.07.04"]
[WhiteClock "0:00:36"]
[BlackClock "0:01:34"]
[Board "168"]

1. e4 {[%clk 0:03:00]}  g6 {[%clk 0:03:00]} 2. Nf3 {[%clk 0:03:00]}  Bg7 {[%clk 0:03:00]} 3. d4 {[%clk 0:03:00]}  c6 {[%clk 0:03:00]} 4. Bd3 {[%clk 0:02:55]}  d5 {[%clk 0:03:00]} 5. exd5 {[%clk 0:02:56]}  cxd5 {[%clk 0:03:01]} 6. Bf4 {[%clk 0:02:50]}  Nc6 {[%clk 0:02:55]} 7. c3 {[%clk 0:02:50]}  Nf6 {[%clk 0:02:50]} 8. O-O {[%clk 0:02:49]}  Bf5 {[%clk 0:02:49]} 9. Re1 {[%clk 0:02:46]}  O-O {[%clk 0:02:49]} 10. Ne5 {[%clk 0:02:42]}  Qb6 {[%clk 0:02:40]} 11. Bxf5 {[%clk 0:02:32]}  gxf5 {[%clk 0:02:41]} 12. Qc2 {[%clk 0:02:25]}  e6 {[%clk 0:02:41]} 13. Nd2 {[%clk 0:02:25]}  Rac8 {[%clk 0:02:40]} 14. Qb3 {[%clk 0:02:21]}  Qa6 {[%clk 0:02:17]} 15. h3 {[%clk 0:02:10]}  Ne7 {[%clk 0:02:12]} 16. Ndf3 {[%clk 0:02:07]}  Ng6 {[%clk 0:02:11]} 17. Nxg6 {[%clk 0:02:06]}  hxg6 {[%clk 0:02:12]} 18. Ne5 {[%clk 0:02:02]}  Rfd8 {[%clk 0:02:05]} 19. Re3 {[%clk 0:01:52]}  Ne4 {[%clk 0:01:54]} 20. f3 {[%clk 0:01:41]}  Nd6 {[%clk 0:01:54]} 21. Rae1 {[%clk 0:01:35]}  Re8 {[%clk 0:01:52]} 22. h4 {[%clk 0:01:18]}  Qb6 {[%clk 0:01:36]} 23. Qxb6 {[%clk 0:00:57]}  axb6 {[%clk 0:01:37]} 24. Nxg6 {[%clk 0:00:56]}  Nc4 {[%clk 0:01:37]} 25. R3e2 {[%clk 0:00:42]}  fxg6 {[%clk 0:01:36]} 26. Rxe6 {[%clk 0:00:36]}  Kf7 {[%clk 0:01:34]} 0-1


[Site "https://www.chess.com"]

[Event "Titled Tuesday Blitz July 4 Early 2023"]
[White "Trifan, Andrei Ioan"]
[Black "Shtompel, Yuriy"]
[WhiteFideId "12967068"]
[BlackFideId "14168278"]
[WhiteElo "2528"]
[BlackElo "2329"]
[Result "1-0"]
[Round "2"]
[TimeControl "180+2"]
[Date "2023.07.04"]
[WhiteClock "0:00:24"]
[BlackClock "0:00:00"]
[Board "170"]

1. Nf3 {[%clk 0:02:59]}  Nf6 {[%clk 0:02:58]} 2. b3 {[%clk 0:02:57]}  g6 {[%clk 0:02:59]} 3. Bb2 {[%clk 0:02:56]}  Bg7 {[%clk 0:02:59]} 4. e4 {[%clk 0:02:54]}  d6 {[%clk 0:02:59]} 5. Be2 {[%clk 0:02:46]}  O-O {[%clk 0:02:57]} 6. d3 {[%clk 0:02:46]}  e5 {[%clk 0:02:54]} 7. O-O {[%clk 0:02:44]}  h6 {[%clk 0:02:51]} 8. Re1 {[%clk 0:02:43]}  Nc6 {[%clk 0:02:41]} 9. Nbd2 {[%clk 0:02:40]}  Nh7 {[%clk 0:02:20]} 10. Bf1 {[%clk 0:02:33]}  f5 {[%clk 0:02:18]} 11. c4 {[%clk 0:02:25]}  f4 {[%clk 0:02:12]} 12. a3 {[%clk 0:02:19]}  g5 {[%clk 0:02:10]} 13. h3 {[%clk 0:02:08]}  h5 {[%clk 0:01:45]} 14. Nh2 {[%clk 0:02:05]}  Nf6 {[%clk 0:01:45]} 15. Be2 {[%clk 0:02:01]}  Qe8 {[%clk 0:01:37]} 16. b4 {[%clk 0:01:57]}  Qg6 {[%clk 0:01:35]} 17. f3 {[%clk 0:01:54]}  Nd4 {[%clk 0:01:12]} 18. Bxd4 {[%clk 0:01:50]}  exd4 {[%clk 0:01:12]} 19. Nb3 {[%clk 0:01:50]}  Nd7 {[%clk 0:01:11]} 20. c5 {[%clk 0:01:41]}  dxc5 {[%clk 0:00:58]} 21. bxc5 {[%clk 0:01:42]}  Ne5 {[%clk 0:00:36]} 22. Rc1 {[%clk 0:01:28]}  Bd7 {[%clk 0:00:28]} 23. Na5 {[%clk 0:01:24]}  b6 {[%clk 0:00:26]} 24. Nc4 {[%clk 0:01:18]}  b5 {[%clk 0:00:21]} 25. Nxe5 {[%clk 0:01:17]}  Bxe5 {[%clk 0:00:22]} 26. Qb3+ {[%clk 0:01:15]}  Kh7 {[%clk 0:00:22]} 27. Qd5 {[%clk 0:01:09]}  Qe6 {[%clk 0:00:19]} 28. Bd1 {[%clk 0:01:04]}  c6 {[%clk 0:00:15]} 29. Qb3 {[%clk 0:01:02]}  Qxb3 {[%clk 0:00:13]} 30. Bxb3 {[%clk 0:01:02]}  a5 {[%clk 0:00:14]} 31. a4 {[%clk 0:00:59]}  Rab8 {[%clk 0:00:14]} 32. Ra1 {[%clk 0:00:56]}  b4 {[%clk 0:00:11]} 33. Reb1 {[%clk 0:00:50]}  Kg7 {[%clk 0:00:11]} 34. Bd1 {[%clk 0:00:50]}  Kf6 {[%clk 0:00:11]} 35. Nf1 {[%clk 0:00:50]}  Rg8 {[%clk 0:00:11]} 36. Kf2 {[%clk 0:00:48]}  Be6 {[%clk 0:00:07]} 37. Nd2 {[%clk 0:00:46]}  g4 {[%clk 0:00:07]} 38. hxg4 {[%clk 0:00:47]}  hxg4 {[%clk 0:00:07]} 39. fxg4 {[%clk 0:00:41]}  Bxg4 {[%clk 0:00:06]} 40. Nc4 {[%clk 0:00:40]}  Bc7 {[%clk 0:00:03]} 41. Bb3 {[%clk 0:00:33]}  Rbf8 {[%clk 0:00:02]} 42. e5+ {[%clk 0:00:30]}  Kg5 {[%clk 0:00:01]} 43. Nd6 {[%clk 0:00:30]}  Rg7 {[%clk 0:00:02]} 44. Rh1 {[%clk 0:00:29]}  Bxd6 {[%clk 0:00:02]} 45. exd6 {[%clk 0:00:29]}  Re8 {[%clk 0:00:03]} 46. Rae1 {[%clk 0:00:29]}  Re3 {[%clk 0:00:03]} 47. Bc4 {[%clk 0:00:25]}  Rg8 {[%clk 0:00:00]} 48. Bxg8 {[%clk 0:00:24]} 1-0


[Site "https://www.chess.com"]

[Event "Titled Tuesday Blitz July 4 Early 2023"]
[White "Wang, Alexander J"]
[Black "Droin, Augustin"]
[WhiteFideId "30955270"]
[BlackFideId "45105987"]
[WhiteElo "2319"]
[BlackElo "2526"]
[Result "0-1"]
[Round "2"]
[TimeControl "180+2"]
[Date "2023.07.04"]
[WhiteClock "0:00:05"]
[BlackClock "0:00:11"]
[Board "173"]

1. e4 {[%clk 0:02:59]}  c5 {[%clk 0:02:59]} 2. Nf3 {[%clk 0:02:57]}  Nc6 {[%clk 0:02:59]} 3. d4 {[%clk 0:02:56]}  cxd4 {[%clk 0:03:00]} 4. Nxd4 {[%clk 0:02:56]}  Nf6 {[%clk 0:02:51]} 5. Nc3 {[%clk 0:02:55]}  h5 {[%clk 0:02:48]} 6. g3 {[%clk 0:02:45]}  h4 {[%clk 0:02:45]} 7. Bg2 {[%clk 0:02:32]}  h3 {[%clk 0:02:39]} 8. Bf3 {[%clk 0:02:31]}  e5 {[%clk 0:02:35]} 9. Nb3 {[%clk 0:02:23]}  Be7 {[%clk 0:02:27]} 10. Be3 {[%clk 0:02:13]}  d6 {[%clk 0:02:27]} 11. Qd2 {[%clk 0:02:08]}  Be6 {[%clk 0:02:24]} 12. Nd5 {[%clk 0:02:02]}  Bxd5 {[%clk 0:02:18]} 13. exd5 {[%clk 0:01:57]}  Nb8 {[%clk 0:02:19]} 14. O-O-O {[%clk 0:01:54]}  a5 {[%clk 0:02:14]} 15. Kb1 {[%clk 0:01:35]}  a4 {[%clk 0:02:13]} 16. Nc1 {[%clk 0:01:34]}  Nbd7 {[%clk 0:02:13]} 17. a3 {[%clk 0:01:34]}  b5 {[%clk 0:02:12]} 18. Be2 {[%clk 0:01:28]}  Rb8 {[%clk 0:02:11]} 19. f4 {[%clk 0:01:24]}  O-O {[%clk 0:02:06]} 20. fxe5 {[%clk 0:01:19]}  Nxe5 {[%clk 0:02:07]} 21. Bf4 {[%clk 0:01:16]}  Nfd7 {[%clk 0:01:56]} 22. Bd3 {[%clk 0:01:09]}  Bf6 {[%clk 0:01:54]} 23. Qe2 {[%clk 0:01:05]}  Nc4 {[%clk 0:01:53]} 24. c3 {[%clk 0:00:56]}  Nde5 {[%clk 0:01:49]} 25. Qh5 {[%clk 0:00:53]}  Nxd3 {[%clk 0:01:43]} 26. Nxd3 {[%clk 0:00:52]}  Qd7 {[%clk 0:01:38]} 27. Rhf1 {[%clk 0:00:45]}  Rbe8 {[%clk 0:01:33]} 28. Bc1 {[%clk 0:00:43]}  g6 {[%clk 0:01:17]} 29. Qf3 {[%clk 0:00:36]}  Bg7 {[%clk 0:01:17]} 30. Rde1 {[%clk 0:00:31]}  Ne5 {[%clk 0:01:09]} 31. Nxe5 {[%clk 0:00:31]}  dxe5 {[%clk 0:01:10]} 32. Rd1 {[%clk 0:00:29]}  f5 {[%clk 0:01:10]} 33. d6 {[%clk 0:00:27]}  e4 {[%clk 0:01:09]} 34. Qe2 {[%clk 0:00:27]}  Re6 {[%clk 0:01:08]} 35. Bf4 {[%clk 0:00:27]}  Be5 {[%clk 0:01:06]} 36. Bxe5 {[%clk 0:00:26]}  Rxe5 {[%clk 0:01:07]} 37. Rd4 {[%clk 0:00:25]}  Rf6 {[%clk 0:01:04]} 38. Rfd1 {[%clk 0:00:25]}  Ree6 {[%clk 0:01:04]} 39. Qd2 {[%clk 0:00:25]}  e3 {[%clk 0:01:04]} 40. Qe2 {[%clk 0:00:24]}  Rxd6 {[%clk 0:00:43]} 41. Qxe3 {[%clk 0:00:23]}  Rxd4 {[%clk 0:00:43]} 42. Rxd4 {[%clk 0:00:23]}  Re6 {[%clk 0:00:20]} 43. Qd2 {[%clk 0:00:15]}  Qc6 {[%clk 0:00:20]} 44. Rd8+ {[%clk 0:00:14]}  Kg7 {[%clk 0:00:21]} 45. Rd7+ {[%clk 0:00:13]}  Kg8 {[%clk 0:00:14]} 46. Rd8+ {[%clk 0:00:12]}  Kf7 {[%clk 0:00:14]} 47. Rd7+ {[%clk 0:00:11]}  Ke8 {[%clk 0:00:14]} 48. Rd4 {[%clk 0:00:11]}  Qh1+ {[%clk 0:00:13]} 49. Ka2 {[%clk 0:00:11]}  Qc6 {[%clk 0:00:09]} 50. Qg5 {[%clk 0:00:11]}  Rf6 {[%clk 0:00:08]} 51. Qh6 {[%clk 0:00:11]}  Qe6+ {[%clk 0:00:08]} 52. Kb1 {[%clk 0:00:10]}  Qe1+ {[%clk 0:00:08]} 53. Ka2 {[%clk 0:00:09]}  Qe6+ {[%clk 0:00:09]} 54. Kb1 {[%clk 0:00:10]}  Rf8 {[%clk 0:00:09]} 55. Qd2 {[%clk 0:00:09]}  Kf7 {[%clk 0:00:08]} 56. Rd7+ {[%clk 0:00:08]}  Kg8 {[%clk 0:00:08]} 57. Rd4 {[%clk 0:00:09]}  f4 {[%clk 0:00:08]} 58. gxf4 {[%clk 0:00:09]}  Qf5+ {[%clk 0:00:08]} 59. Ka2 {[%clk 0:00:09]}  Qe6+ {[%clk 0:00:08]} 60. Ka1 {[%clk 0:00:09]}  Re8 {[%clk 0:00:09]} 61. Qd1 {[%clk 0:00:07]}  Qe1 {[%clk 0:00:09]} 62. Qxe1 {[%clk 0:00:07]}  Rxe1+ {[%clk 0:00:10]} 63. Ka2 {[%clk 0:00:08]}  Re2 {[%clk 0:00:11]} 64. Rd8+ {[%clk 0:00:08]}  Kf7 {[%clk 0:00:11]} 65. Rd7+ {[%clk 0:00:09]}  Kf6 {[%clk 0:00:11]} 66. Rb7 {[%clk 0:00:07]}  Rxh2 {[%clk 0:00:11]} 67. Rxb5 {[%clk 0:00:07]}  Rf2 {[%clk 0:00:11]} 68. Rb7 {[%clk 0:00:07]}  Rxf4 {[%clk 0:00:10]} 69. Rh7 {[%clk 0:00:07]}  Rf3 {[%clk 0:00:10]} 70. c4 {[%clk 0:00:07]}  Ke5 {[%clk 0:00:11]} 71. Kb1 {[%clk 0:00:06]}  g5 {[%clk 0:00:11]} 72. Kc2 {[%clk 0:00:06]}  g4 {[%clk 0:00:11]} 73. Kd2 {[%clk 0:00:06]}  Rf2+ {[%clk 0:00:11]} 74. Ke1 {[%clk 0:00:07]}  Rxb2 {[%clk 0:00:11]} 75. Rh4 {[%clk 0:00:07]}  h2 {[%clk 0:00:11]} 76. Kf1 {[%clk 0:00:06]}  g3 {[%clk 0:00:11]} 77. Rh3 {[%clk 0:00:05]}  g2+ {[%clk 0:00:11]} 0-1


[Site "https://www.chess.com"]

[Event "Titled Tuesday Blitz July 4 Early 2023"]
[White "Juknis, Paulius"]
[Black "Horobetz, Graham"]
[WhiteFideId "12802247"]
[BlackFideId "2047322"]
[WhiteElo "2310"]
[BlackElo "2524"]
[Result "1-0"]
[Round "2"]
[TimeControl "180+2"]
[Date "2023.07.04"]
[WhiteClock "0:00:23"]
[BlackClock "0:00:10"]
[Board "176"]

1. e4 {[%clk 0:03:00]}  c5 {[%clk 0:02:59]} 2. Nc3 {[%clk 0:03:01]}  g6 {[%clk 0:02:59]} 3. d4 {[%clk 0:02:58]}  cxd4 {[%clk 0:02:59]} 4. Qxd4 {[%clk 0:02:58]}  Nf6 {[%clk 0:02:59]} 5. Be3 {[%clk 0:02:57]}  Nc6 {[%clk 0:02:58]} 6. Qd2 {[%clk 0:02:58]}  Ng4 {[%clk 0:02:51]} 7. Bf4 {[%clk 0:02:58]}  Bg7 {[%clk 0:02:39]} 8. f3 {[%clk 0:02:55]}  Nge5 {[%clk 0:02:29]} 9. O-O-O {[%clk 0:02:51]}  d6 {[%clk 0:02:28]} 10. Bh6 {[%clk 0:02:50]}  O-O {[%clk 0:02:19]} 11. h4 {[%clk 0:02:47]}  Bxh6 {[%clk 0:01:39]} 12. Qxh6 {[%clk 0:02:47]}  f6 {[%clk 0:01:37]} 13. Nge2 {[%clk 0:02:18]}  Be6 {[%clk 0:01:26]} 14. Nf4 {[%clk 0:01:58]}  Nf7 {[%clk 0:01:16]} 15. Nxe6 {[%clk 0:01:58]}  Nxh6 {[%clk 0:01:17]} 16. Nxd8 {[%clk 0:01:57]}  Rfxd8 {[%clk 0:01:17]} 17. Bc4+ {[%clk 0:01:54]}  Kg7 {[%clk 0:01:17]} 18. g4 {[%clk 0:01:53]}  Ne5 {[%clk 0:01:15]} 19. Be2 {[%clk 0:01:53]}  Rac8 {[%clk 0:01:10]} 20. g5 {[%clk 0:01:50]}  Nhf7 {[%clk 0:01:00]} 21. f4 {[%clk 0:01:46]}  Nc4 {[%clk 0:00:59]} 22. Rd3 {[%clk 0:01:39]}  Nb6 {[%clk 0:00:45]} 23. Bg4 {[%clk 0:01:37]}  Rc5 {[%clk 0:00:41]} 24. Nd5 {[%clk 0:01:23]}  Nxd5 {[%clk 0:00:41]} 25. Rxd5 {[%clk 0:01:23]}  Rxd5 {[%clk 0:00:40]} 26. exd5 {[%clk 0:01:23]}  f5 {[%clk 0:00:40]} 27. Bf3 {[%clk 0:01:19]}  Rc8 {[%clk 0:00:39]} 28. Re1 {[%clk 0:01:19]}  Rc7 {[%clk 0:00:39]} 29. h5 {[%clk 0:01:19]}  gxh5 {[%clk 0:00:38]} 30. Bxh5 {[%clk 0:01:17]}  Nh8 {[%clk 0:00:39]} 31. Be2 {[%clk 0:00:48]}  Ng6 {[%clk 0:00:36]} 32. Rf1 {[%clk 0:00:48]}  Rc5 {[%clk 0:00:36]} 33. c4 {[%clk 0:00:46]}  b5 {[%clk 0:00:35]} 34. b3 {[%clk 0:00:46]}  b4 {[%clk 0:00:33]} 35. Bd3 {[%clk 0:00:44]}  Rc8 {[%clk 0:00:27]} 36. Bxf5 {[%clk 0:00:44]}  Rf8 {[%clk 0:00:27]} 37. Bxg6 {[%clk 0:00:44]}  Kxg6 {[%clk 0:00:27]} 38. Kd2 {[%clk 0:00:44]}  h6 {[%clk 0:00:20]} 39. gxh6 {[%clk 0:00:33]}  Rh8 {[%clk 0:00:20]} 40. Rg1+ {[%clk 0:00:30]}  Kf6 {[%clk 0:00:18]} 41. Rh1 {[%clk 0:00:29]}  Kg6 {[%clk 0:00:14]} 42. Ke3 {[%clk 0:00:29]}  Kh7 {[%clk 0:00:14]} 43. Ke4 {[%clk 0:00:28]}  Rg8 {[%clk 0:00:13]} 44. Kf5 {[%clk 0:00:28]}  Rg2 {[%clk 0:00:12]} 45. Ke6 {[%clk 0:00:27]}  Re2+ {[%clk 0:00:12]} 46. Kd7 {[%clk 0:00:27]}  a5 {[%clk 0:00:13]} 47. f5 {[%clk 0:00:24]}  Re5 {[%clk 0:00:13]} 48. f6 {[%clk 0:00:23]}  exf6 {[%clk 0:00:14]} 49. Kxd6 {[%clk 0:00:23]}  Re2 {[%clk 0:00:15]} 50. c5 {[%clk 0:00:23]}  Rxa2 {[%clk 0:00:15]} 51. c6 {[%clk 0:00:24]}  Rc2 {[%clk 0:00:15]} 52. c7 {[%clk 0:00:24]}  a4 {[%clk 0:00:13]} 53. bxa4 {[%clk 0:00:24]}  b3 {[%clk 0:00:14]} 54. Rb1 {[%clk 0:00:24]}  b2 {[%clk 0:00:10]} 55. Rxb2 {[%clk 0:00:23]} 1-0


[Site "https://www.chess.com"]